Workbook

Sheet 5 класс
B1: 5 класс Биология (школьный этап)
B2: ФАМИЛИЯ Имя и Отчество участника | C2: школа | D2: баллы | E2: % | F2: ФИО учителя | G2: макс кол-во баллов | H2: 25
A3: победитель | B3: Гарунов Владимир Александрович | C3: МБОУ "Коношеозерская СШ им. В.А.Корытова" | D3: 20.1 | E3: =D3*100/25 -> 80 | F3: Марчук Л.В.
A4: победитель | B4: Яковлева Дарья Юрьевна | C4: МБОУ "Вохтомская ОШ" СП "Волошская ОШ" | D4: 15.2 | E4: 61 | F4: Ильина Г.А.
A5: победитель | B5: Волощенко Николай Сергеевич | C5: МБОУ "Коношская СШ имени Н.П. Лавёрова" | D5: 15 | E5: =D5*100/25 -> 60 | F5: Шубина Елена Борисовна
A6: призер | B6: Воронин Вадим Алексеевич | C6: МБОУ "Коношская СШ имени Н.П. Лавёрова" | D6: 15 | E6: 60 | F6: Шубина Елена Борисовна
A7: пеобедитель | B7: Мачаликашвили Айшат Мовсаровна | C7: МБОУ "Подюжская СШ им. В.А. Абрамова" | D7: 15 | E7: 60 | F7: Краева Е.П.
A8: призер | B8: Лукина Мария Алексеевна | C8: МБОУ "Коношская СШ имени Н.П. Лавёрова" | D8: 14.8 | E8: 59 | F8: Шубина Елена Борисовна
A9: призер | B9: Саврасов Иван Романович | C9: МБОУ "Коношская СШ имени Н.П. Лавёрова" | D9: 14.5 | E9: 58 | F9: Шубина Елена Борисовна
A10: призер | B10: Сандул Дарья Ивановна | C10: МБОУ "Коношеозерская СШ им. В.А.Корытова" | D10: 14.5 | E10: 58 | F10: Марчук Л.В.
A11: призер | B11: Серков Марк Янович | C11: МБОУ "Коношеозерская СШ им. В.А.Корытова" | D11: 13 | E11: 52 | F11: Марчук Л.В.
A12: призер | B12: Андреев Илья Алексеевич | C12: МБОУ "Коношская СШ имени Н.П. Лавёрова" | D12: 12.5 | E12: 50 | F12: Шубина Елена Борисовна
A13: призер | B13: Иващко Саша Владимирович | C13: МБОУ "Коношская СШ имени Н.П. Лавёрова" | D13: 11.5 | E13: 46 | F13: Шубина Елена Борисовна
A14: призер | B14: Левачев Дмитрий Эдуардович | C14: МБОУ "Коношская ОШ" | D14: 11.2 | E14: 45 | F14: Вараксина Ю.А.
A15: участник | B15: Андреев Максим Алексеевич | C15: МБОУ "Коношская СШ имени Н.П. Лавёрова" | D15: 10.8 | E15: 43 | F15: Шубина Елена Борисовна
A16: участник | B16: Бова Александра Анатольевна | C16: МБОУ "Коношеозерская СШ им. В.А.Корытова" | D16: 9.8 | E16: 39 | F16: Марчук Л.В.
A17: участник | B17: Сархадова Мария Валерьевна | C17: МБОУ "Подюжская СШ им. В.А. Абрамова" | D17: 9.8 | E17: 39 | F17: Краева Е.П.
A18: участник | B18: Кишкина Дарья Олеговна | C18: МБОУ "Вохтомская ОШ" | D18: 9.8 | E18: 39 | F18: Артемова Н.П.
A19: участник | B19: Власова Мария Игоревна | C19: МБОУ "Коношская СШ имени Н.П. Лавёрова" | D19: 9.4 | E19: 38 | F19: Шубина Елена Борисовна
A20: участник | B20: Кузнецова София Артемовна | C20: МБОУ "Коношская СШ имени Н.П. Лавёрова" | D20: 9.1 | E20: 36 | F20: Шубина Елена Борисовна
A21: участник | B21: Торопова София Викторовна | C21: МБОУ "Коношская СШ имени Н.П. Лавёрова" | D21: 9 | E21: 36 | F21: Шубина Елена Борисовна
A22: участник | B22: Скурихина Кира Андреевна | C22: МБОУ "Коношская СШ имени Н.П. Лавёрова" | D22: 8.8 | E22: 35 | F22: Шубина Елена Борисовна
A23: участник | B23: Кожемякин Андрей Иванович | C23: МБОУ "Коношская СШ имени Н.П. Лавёрова" | D23: 8.5 | E23: 34 | F23: Шубина Елена Борисовна
A24: участник | B24: Тарасов Георгий Александрович | C24: МБОУ "Ерцевская СШ им. С.И. Бочарова" | D24: 8.5 | E24: 34 | F24: Рубайло О.А.
A25: участник | B25: Бормотова Маргарита Владимировна | C25: МБОУ "Ерцевская СШ им. С.И. Бочарова" | D25: 8.1 | E25: 32 | F25: Рубайло О.А.
A26: участник | B26: Кизяев Ярослав Сергеевич | C26: МБОУ "Коношская СШ имени Н.П. Лавёрова" | D26: 8 | E26: 32 | F26: Шубина Елена Борисовна
A27: участник | B27: Корчагина Виктория Сергеевна | C27: МБОУ "Ерцевская СШ им. С.И. Бочарова" | D27: 7.7 | E27: 31 | F27: Рубайло О.А.
A28: участник | B28: Оськина Алиса Олеговна | C28: МБОУ "Коношская СШ имени Н.П. Лавёрова" | D28: 7.4 | E28: 30 | F28: Шубина Елена Борисовна
A29: участник | B29: Гезалова Лейла Исмаиловна | C29: МБОУ "Ерцевская СШ им. С.И. Бочарова" | D29: 7.4 | E29: 30 | F29: Рубайло О.А.
A30: участник | B30: Кириянов Сергей Сергеевич | C30: МБОУ "Ерцевская СШ им. С.И. Бочарова" | D30: 6.4 | E30: 26 | F30: Рубайло О.А.
A31: участник | B31: Цеповяз Диана Александровна | C31: МБОУ "Коношская СШ имени Н.П. Лавёрова" | D31: 5.7 | E31: 23 | F31: Шубина Елена Борисовна
A32: участник | B32: Пашков Роман Артёмович | C32: МБОУ "Коношская СШ имени Н.П. Лавёрова" | D32: 5.5 | E32: 22 | F32: Шубина Елена Борисовна
A33: участник | B33: Колесов Антон Анатольевич | C33: МБОУ "Ерцевская СШ им. С.И. Бочарова" | D33: 5.2 | E33: 21 | F33: Рубайло О.А.
A34: участник | B34: Усанова Анастасия Александровна | C34: МБОУ "Подюжская СШ им. В.А. Абрамова" | D34: 3.8 | E34: 15 | F34: Краева Е.П.
A35: участник | B35: Сысоева Снежана Юрьевна | C35: МБОУ "Ерцевская СШ им. С.И. Бочарова" | D35: 3.3 | E35: 13 | F35: Рубайло О.А.
A36: участник | B36: Черепанова Варвара Андреевна | C36: МБОУ "Ерцевская СШ им. С.И. Бочарова" | D36: 3.2 | E36: 13 | F36: Рубайло О.А. | G36: 25
A37: участник | B37: Армашова Дарья Сергеевна | C37: МБОУ "Ерцевская СШ им. С.И. Бочарова" | D37: 3 | E37: 12 | F37: Рубайло О.А.
A38: участник | B38: Сандул Дарья Ивановна | C38: МБОУ "Коношеозерская СШ им. В.А.Корытова" | D38: 0 | E38: 0 | F38: Марчук Л.В. | G38: 25

Sheet 6 класс
B1: 6 класс биология (школьный этап)
B2: ФАМИЛИЯ Имя и Отчество участника | C2: школа | D2: баллы | E2: % | F2: ФИО учителя | G2: макс кол-во баллов | H2: 25
A3: победитель | B3: Негодяев Семён Андреевич | C3: МБОУ "Коношеозерская СШ им. В.А.Корытова" | D3: 19.8 | E3: =D3*100/25 -> 79 | F3: Марчук Л.В.
A4: призер | B4: Павлова Кристина Николаевна | C4: МБОУ "Коношеозерская СШ им. В.А.Корытова" | D4: 17.8 | E4: =D4*100/25 -> 71 | F4: Марчук Л.В.
A5: победитель | B5: Евтушенко Ростислав Яковлевич | C5: МБОУ "Коношская СШ имени Н.П. Лавёрова" | D5: 17 | E5: =D5*100/25 -> 68 | F5: Шубина Елена Борисовна
A6: призер | B6: Сорокин Сергей Юрьевич | C6: МБОУ "Коношеозерская СШ им. В.А.Корытова" | D6: 16.6 | E6: =D6*100/25 -> 66 | F6: Марчук Л.В.
A7: победитель | B7: Яковлева Мария Александровна | C7: МБОУ "Вохтомская ОШ" СП "Волошская ОШ" | D7: 15.6 | E7: 62 | F7: Ильина Г.А.
A8: призер | B8: Лобинский Арсений Викторович | C8: МБОУ "Коношская СШ имени Н.П. Лавёрова" | D8: 14.5 | E8: =D8*100/25 -> 58 | F8: Носарева Татьяна Юрьевна
A9: призер | B9: Егоров Павел Александрович | C9: МБОУ "Коношеозерская СШ им. В.А.Корытова" | D9: 13.8 | E9: 55 | F9: Марчук Л.В.
A10: победитель | B10: Аронова Лиана Васильевна | C10: МБОУ "Климовская СШ" | D10: 13.8 | E10: 55 | F10: Котова Н.С.
A11: призер | B11: Дыбина Мария Николаевна | C11: МБОУ "Коношская СШ имени Н.П. Лавёрова" | D11: 13.5 | E11: 54 | F11: Носарева Татьяна Юрьевна
A12: призер | B12: Виноградов Алексей Владимирович | C12: МБОУ "Вохтомская ОШ" | D12: 12.4 | E12: 50 | F12: Артемова Н.П.
A13: призер | B13: Воробьева София Валентиновна | C13: МБОУ "Коношская СШ имени Н.П. Лавёрова" | D13: 12.1 | E13: 48 | F13: Носарева Татьяна Юрьевна
A14: призер | B14: Гергедава Анастасия Кахаевна | C14: МБОУ "Коношская СШ имени Н.П. Лавёрова" | D14: 11.8 | E14: 47 | F14: Шубина Елена Борисовна
A15: призер | B15: Фрикликас Егор Максимович | C15: МБОУ "Ерцевская СШ им. С.И. Бочарова" | D15: 11.8 | E15: 47 | F15: Рубайло О.А.
A16: призер | B16: Юсупмурзина Полина Юрьевна | C16: МБОУ "Подюжская СШ им. В.А. Абрамова" | D16: 11.6 | E16: 46 | F16: Краева Е.П.
A17: призер | B17: Писарев Матвей Степанович | C17: МБОУ "Коношская СШ имени Н.П. Лавёрова" | D17: 11.5 | E17: 46 | F17: Носарева Татьяна Юрьевна
A18: участник | B18: Гуляева Ксения Максимовна | C18: МБОУ "Лесозаводская СШ" | D18: 11.5 | E18: 46 | F18: Семенова Ольга Сергеевна
A19: участник | B19: Гольцева Александра Андреевна | C19: МБОУ "Лесозаводская СШ" | D19: 11.1 | E19: 44 | F19: Семенова Ольга Сергеевна
A20: участник | B20: Золотов Дмитрий Николаевич | C20: МБОУ "Ерцевская СШ им. С.И. Бочарова" | D20: 11.1 | E20: 44 | F20: Рубайло О.А.
A21: участник | B21: Чернышов Дмитрий Максимович | C21: МБОУ "Коношская СШ имени Н.П. Лавёрова" | D21: 11 | E21: 44 | F21: Шубина Елена Борисовна
A22: участник | B22: Виноградов Андрей Иванович | C22: МБОУ "Ерцевская СШ им. С.И. Бочарова" | D22: 11 | E22: 44 | F22: Рубайло О.А.
A23: участник | B23: Бочаров Илья Александрович | C23: МБОУ "Ерцевская СШ им. С.И. Бочарова" | D23: 10.8 | E23: 43 | F23: Рубайло О.А.
A24: участник | B24: Афанасьев максим николаевич | C24: МБОУ "Коношская СШ имени Н.П. Лавёрова" | D24: 10.5 | E24: 42 | F24: Шубина Елена Борисовна
A25: участник | B25: Пирожкин павел Андреевич | C25: МБОУ "Коношеозерская СШ им. В.А.Корытова" | D25: 10.5 | E25: 42 | F25: Марчук Л.В.
A26: участник | B26: Калмыков Владислав Дмитриевич | C26: МБОУ "Лесозаводская СШ" | D26: 10.4 | E26: 42 | F26: Семенова Ольга Сергеевна
A27: участник | B27: Пузина Виктория Валерьевна | C27: МБОУ "Коношская СШ имени Н.П. Лавёрова" | D27: 10 | E27: 40 | F27: Носарева Татьяна Юрьевна
A28: участник | B28: Башкирев Алексей Николаевич | C28: МБОУ "Коношеозерская СШ им. В.А.Корытова" | D28: 10 | E28: 40 | F28: Марчук Л.В.
A29: участник | B29: Куриченкова Варвара Максимовна | C29: МБОУ "Коношская СШ имени Н.П. Лавёрова" | D29: 9.8 | E29: 39 | F29: Шубина Елена Борисовна
A30: участник | B30: Рыжков Артём Алексеевич | C30: МБОУ "Ерцевская СШ им. С.И. Бочарова" | D30: 9.8 | E30: 39 | F30: Рубайло О.А.
A31: участник | B31: Соколова Марина Алексеевна | C31: МБОУ "Ерцевская СШ им. С.И. Бочарова" | D31: 9.8 | E31: 39 | F31: Рубайло О.А.
A32: участник | B32: Тупота Андрей Викторович | C32: МБОУ "Коношская СШ имени Н.П. Лавёрова" | D32: 9.5 | E32: 38 | F32: Шубина Елена Борисовна
A33: участник | B33: Гурина Валерия Евгеньевна | C33: МБОУ "Ерцевская СШ им. С.И. Бочарова" | D33: 9.5 | E33: 38 | F33: Рубайло О.А.
A34: участник | B34: Ивашов Роман Сергеевич | C34: МБОУ "Вохтомская ОШ" | D34: 9.5 | E34: 38 | F34: Артемова Н.П.
A35: участник | B35: Леонова Милана Алексеевна | C35: МБОУ "Лесозаводская СШ" | D35: 9.1 | E35: 36 | F35: Семенова Ольга Сергеевна
A36: участник | B36: Тихонова марьяна владимировна | C36: МБОУ "Коношская СШ имени Н.П. Лавёрова" | D36: 9 | E36: 36 | F36: Шубина Елена Борисовна
A37: участник | B37: Стоянова Кристина Игоревна | C37: МБОУ "Подюжская СШ им. В.А. Абрамова" | D37: 9 | E37: 36 | F37: Краева Е.П.
A38: участник | B38: Ершова Даша Евгеньевна | C38: МБОУ "Коношская СШ имени Н.П. Лавёрова" | D38: 8.4 | E38: 34 | F38: Шубина Елена Борисовна
A39: участник | B39: Сибирякова Полина Алексеевна | C39: МБОУ "Ерцевская СШ им. С.И. Бочарова" | D39: 8.4 | E39: 34 | F39: Рубайло О.А.
A40: участник | B40: Куклинова Марьяна Сергеевна | C40: МБОУ "Подюжская СШ им. В.А. Абрамова" | D40: 8 | E40: 32 | F40: Краева Е.П.
A41: участник | B41: Шахова Аоина Алексееевна | C41: МБОУ "Климовская СШ" | D41: 7.8 | E41: 31 | F41: Котова Н.С.
A42: участник | B42: Денисова Ева Евгеньевна | C42: МБОУ "Ерцевская СШ им. С.И. Бочарова" | D42: 7.7 | E42: 31 | F42: Рубайло О.А.
A43: участник | B43: Серебряков Владислав Андреевич | C43: МБОУ "Ерцевская СШ им. С.И. Бочарова" | D43: 7.7 | E43: 31 | F43: Рубайло О.А.
A44: участник | B44: Поросенкова Ксения Сергеевна | C44: МБОУ "Ерцевская СШ им. С.И. Бочарова" | D44: 7.5 | E44: 30 | F44: Рубайло О.А.
A45: участник | B45: Щербина Алина Владимировна | C45: МБОУ "Ерцевская СШ им. С.И. Бочарова" | D45: 7.2 | E45: 29 | F45: Рубайло О.А.
A46: участник | B46: Лукаш анна павловна | C46: МБОУ "Коношская СШ имени Н.П. Лавёрова" | D46: 7 | E46: 28 | F46: Шубина Елена Борисовна
A47: участник | B47: Порохина Наталья Сергеевна | C47: МБОУ "Подюжская СШ им. В.А. Абрамова" | D47: 7 | E47: 28 | F47: Краева Е.П.
A48: участник | B48: Саримсаков Ходжиакбар Салимович | C48: МБОУ "Коношская СШ имени Н.П. Лавёрова" | D48: 6.7 | E48: 27 | F48: Шубина Елена Борисовна
A49: участник | B49: Свинчаткин Юрий Евгеньевич | C49: МБОУ "Коношская СШ имени Н.П. Лавёрова" | D49: 6.7 | E49: 27 | F49: Шубина Елена Борисовна
A50: участник | B50: Пальчиков Александр Андреевич | C50: МБОУ "Ерцевская СШ им. С.И. Бочарова" | D50: 6.7 | E50: 27 | F50: Рубайло О.А.
A51: участник | B51: Артёмова Ева Дмитриевна | C51: МБОУ "Коношская СШ имени Н.П. Лавёрова" | D51: 6.5 | E51: 26 | F51: Носарева Татьяна Юрьевна
A52: участник | B52: Колесникова Вера Евгеньевна | C52: МБОУ "Ерцевская СШ им. С.И. Бочарова" | D52: 4.7 | E52: 19 | F52: Рубайло О.А.
A53: участник | B53: Сметанин Максим Олегович | C53: МБОУ "Ерцевская СШ им. С.И. Бочарова" | D53: 4.4 | E53: 18 | F53: Рубайло О.А.
A54: участник | B54: Малозёмова Елизавета Викторовна | C54: МБОУ "Коношская СШ имени Н.П. Лавёрова" | D54: 0 | E54: 0 | F54: Шубина Елена Борисовна

Sheet 7 класс
B1: 7 класс биология (школьный этап) | F1: макс кол-во баллов | H1: 30
B2: ФАМИЛИЯ Имя и Отчество участника | C2: школа | D2: баллы | E2: % | F2: ФИО учителя
A3: победитель | B3: Мельникова Алина Андреевна | C3: МБОУ "Коношская СШ имени Н.П. Лавёрова" | D3: 19.1 | E3: =D3*100/30 -> 64 | F3: Шубина Елена Борисовна
A4: призер | B4: Пихтина София Алексеевна | C4: МБОУ "Тавреньгская СШ" | D4: 19 | E4: =D4*100/30 -> 63 | F4: Седых Н. В.
A5: призер | B5: Шихов Матвей Владимирович | C5: МБОУ "Коношеозерская СШ им. В.А.Корытова" | D5: 18.8 | E5: 63 | F5: Марчук Л.В.
A6: призер | B6: Полозова Карина Алексеевна | C6: МБОУ "Коношеозерская СШ им. В.А.Корытова" | D6: 18.3 | E6: 61 | F6: Марчук Л.В.
A7: призер | B7: Костыльцев Валкрий Евгеньевич | C7: МБОУ "Коношская СШ имени Н.П. Лавёрова" | D7: 17.3 | E7: 58 | F7: Шубина Елена Борисовна
A8: призер | B8: Шубин Руслан Алексеевич | C8: МБОУ "Коношская СШ имени Н.П. Лавёрова" | D8: 17.3 | E8: 58 | F8: Шубина Елена Борисовна
A9: призер | B9: Грахов Арсений Артёмович | C9: МБОУ "Коношская СШ имени Н.П. Лавёрова" | D9: 17 | E9: 57 | F9: Шубина Елена Борисовна
A10: призер | B10: Кузнецов Даниил Александрович | C10: МБОУ "Коношская СШ имени Н.П. Лавёрова" | D10: 17 | E10: 57 | F10: Шубина Елена Борисовна
A11: призер | B11: Филин Денис Сергеевич | C11: МБОУ "Коношская СШ имени Н.П. Лавёрова" | D11: 16.6 | E11: 55 | F11: Шубина Елена Борисовна
A12: призер | B12: Орлов Андрей Адександрович | C12: МБОУ "Тавреньгская СШ" | D12: 15.8 | E12: 53 | F12: Седых Н. В.
A13: призер | B13: Орлова Ольга Александровна | C13: МБОУ "Подюжская СШ им. В.А. Абрамова" | D13: 15.2 | E13: 51 | F13: Краева Е.П.
A14: призер | B14: Фомина Полина Александровна | C14: МБОУ "Коношская СШ имени Н.П. Лавёрова" | D14: 15.1 | E14: 50 | F14: Шубина Елена Борисовна
A15: призер | B15: Щенников Семён Павлович | C15: МБОУ "Коношская СШ имени Н.П. Лавёрова" | D15: 14.8 | E15: 49 | F15: Шубина Елена Борисовна
A16: призер | B16: наумов марк александрович | C16: МБОУ "Коношская СШ имени Н.П. Лавёрова" | D16: 14.8 | E16: 49 | F16: Шубина Елена Борисовна
A17: призер | B17: Костелова Дарья Ивановна | C17: МБОУ "Коношская СШ имени Н.П. Лавёрова" | D17: 14.1 | E17: 47 | F17: Шубина Елена Борисовна
A18: призер | B18: Новгородова Виталина Алексеевна | C18: МБОУ "Коношская СШ имени Н.П. Лавёрова" | D18: 14 | E18: 47 | F18: Шубина Елена Борисовна
A19: участник | B19: Красильникова Дарья Юрьевна | C19: МБОУ "Вохтомская ОШ" | D19: 13.8 | E19: 46 | F19: Артемова Н.П.
A20: участник | B20: Веселкова Марина Александровна | C20: МБОУ "Коношская СШ имени Н.П. Лавёрова" | D20: 13.1 | E20: 44 | F20: Шубина Елена Борисовна
A21: участник | B21: Константинов Павел Леонидович | C21: МБОУ "Вохтомская ОШ" | D21: 12.8 | E21: 43 | F21: Артемова Н.П.
A22: участник | B22: Калинина Полина Алексеевна | C22: МБОУ "Коношская СШ имени Н.П. Лавёрова" | D22: 12.5 | E22: 42 | F22: Шубина Елена Борисовна
A23: участник | B23: Руссу Дарина Руслановна | C23: МБОУ "Ерцевская СШ им. С.И. Бочарова" | D23: 12.5 | E23: 42 | F23: Рубайло О.А.
A24: участник | B24: Рудаков Максим Иванович | C24: МБОУ "Вохтомская ОШ" | D24: 12.5 | E24: 42 | F24: Артемова Н.П.
A25: участник | B25: Топоров Арсений Григорьевич | C25: МБОУ "Лесозаводская СШ" | D25: 12.4 | E25: 41 | F25: Голубева Марина Владимировна
A26: участник | B26: Филиппова Татьяна Дмитриевна | C26: МБОУ "Коношеозерская СШ им. В.А.Корытова" | D26: 12 | E26: 40 | F26: Марчук Л.В.
A27: участник | B27: Продан Савелий Александрович | C27: МБОУ "Коношская СШ имени Н.П. Лавёрова" | D27: 11.8 | E27: 39 | F27: Шубина Елена Борисовна
A28: участник | B28: Беляева Екатерина Максимовна | C28: МБОУ "Лесозаводская СШ" | D28: 11.8 | E28: 39 | F28: Голубева Марина Владимировна
A29: участник | B29: Ноговицин Артем Дмитриевич | C29: МБОУ "Подюжская СШ им. В.А. Абрамова" | D29: 11.8 | E29: 39 | F29: Краева Е.П.
A30: участник | B30: Патракеев Александр Дмитриевич | C30: МБОУ "Лесозаводская СШ" | D30: 11.5 | E30: 38 | F30: Голубева Марина Владимировна
A31: участник | B31: Силичева Варвара Дмитриевна | C31: МБОУ "Ерцевская СШ им. С.И. Бочарова" | D31: 11.4 | E31: 38 | F31: Рубайло О.А.
A32: участник | B32: Малышкина Алиса Юрьевна | C32: МБОУ "Ерцевская СШ им. С.И. Бочарова" | D32: 11.4 | E32: 38 | F32: Рубайло О.А.
A33: участник | B33: Черных Таисия Александровна | C33: МБОУ "Коношская СШ имени Н.П. Лавёрова" | D33: 11.1 | E33: 37 | F33: Шубина Елена Борисовна
A34: участник | B34: Лысова Елизавета Юрьевна | C34: МБОУ "Коношеозерская СШ им. В.А.Корытова" | D34: 11.1 | E34: 37 | F34: Марчук Л.В.
A35: участник | B35: Лобанова Анастасия Николаевна | C35: МБОУ "Климовская СШ" | D35: 11 | E35: 37 | F35: Котова Н.С.
A36: участник | B36: Филиппова Дарья Дмитриевна | C36: МБОУ "Коношеозерская СШ им. В.А.Корытова" | D36: 10.5 | E36: 35 | F36: Марчук Л.В.
A37: участник | B37: Рябов Дмитрий Алекспндрович | C37: МБОУ "Тавреньгская СШ" | D37: 10.4 | E37: 35 | F37: Седых Н. В.
A38: участник | B38: Вараксина Альбина Александровна | C38: МБОУ "Коношская ОШ" | D38: 8.6 | E38: 29 | F38: Вараксина Ю.А.
A39: участник | B39: Патокова Вероника Сергеевна | C39: МБОУ "Коношская СШ имени Н.П. Лавёрова" | D39: 8.5 | E39: 28 | F39: Шубина Елена Борисовна
A40: участник | B40: киселёва полина павловна | C40: МБОУ "Коношская СШ имени Н.П. Лавёрова" | D40: 8.5 | E40: 28 | F40: Шубина Елена Борисовна
A41: участник | B41: Вишнякова Эвелина Александровна | C41: МБОУ "Лесозаводская СШ" | D41: 8.1 | E41: 27 | F41: Голубева Марина Владимировна
A42: участник | B42: Захаров Кирилл Евгеньевич | C42: МБОУ "Коношская СШ имени Н.П. Лавёрова" | D42: 7.2 | E42: 24 | F42: Шубина Елена Борисовна
A43: участник | B43: Сиделёва Василиса Александровна | C43: МБОУ "Лесозаводская СШ" | D43: 7.2 | E43: 24 | F43: Голубева Марина Владимировна
A44: участник | B44: Гандзий Иоланта Николаевна | C44: МБОУ "Вохтомская ОШ" | D44: 6.4 | E44: 21 | F44: Артемова Н.П.
A45: участник | B45: Хохлов Данил Михайлович | C45: МБОУ "Коношеозерская СШ им. В.А.Корытова" | D45: 3.3 | E45: 11 | F45: Марчук Л.В.

Sheet 8 класс
B2: Фамилия Имя и Отчество участника | C2: школа | D2: баллы | E2: % | F2: ФИО учителя | G2: макс кол-во баллов | H2: 33
A3: победитель | B3: Жилин Владимир Александрович | C3: МБОУ "Коношская СШ имени Н.П. Лавёрова" | D3: 23.6 | E3: =D3*100/33 -> 72 | F3: Носарева Татьяна Юрьевна
A4: призер | B4: Мишутина Милена Вячеславовна | C4: МБОУ "Коношская СШ имени Н.П. Лавёрова" | D4: 20.6 | E4: =D4*100/33 -> 62 | F4: Носарева Татьяна Юрьевна
A5: призер | B5: Румянцев Илья Владимирович | C5: МБОУ "Коношская СШ имени Н.П. Лавёрова" | D5: 19.8 | E5: 60 | F5: Носарева Татьяна Юрьевна
A6: призер | B6: Сухнева Юлия Николаевна | C6: МБОУ "Ерцевская СШ им. С.И. Бочарова" | D6: 19 | E6: 58 | F6: Рюмин А.М.
A7: призер | B7: Ковтун Карина Александровна | C7: МБОУ "Коношская СШ имени Н.П. Лавёрова" | D7: 18.8 | E7: 57 | F7: Носарева Татьяна Юрьевна
A8: призер | B8: Седалина Екатерина Александровна | C8: МБОУ "Ерцевская СШ им. С.И. Бочарова" | D8: 18.3 | E8: 55 | F8: Рюмин А.М.
A9: призер | B9: Лопатина Варвара Викторовна | C9: МБОУ "Ерцевская СШ им. С.И. Бочарова" | D9: 17.3 | E9: 52 | F9: Рюмин А.М.
A10: призер | B10: Григорова Екатерина Михайловна | C10: МБОУ "Коношская СШ имени Н.П. Лавёрова" | D10: 16.5 | E10: 50 | F10: Носарева Татьяна Юрьевна
A11: призер | B11: Горюшкина Маргарита Денисовна | C11: МБОУ "Коношская СШ имени Н.П. Лавёрова" | D11: 16.3 | E11: 49 | F11: Носарева Татьяна Юрьевна
A12: призер | B12: Носков Тимур Владиславович | C12: МБОУ "Коношеозерская СШ им. В.А.Корытова" | D12: 16.3 | E12: 49 | F12: Марчук Л.В.
A13: призер | B13: Симановский Дмитрий Александрович | C13: МБОУ "Коношская СШ имени Н.П. Лавёрова" | D13: 15.9 | E13: 48 | F13: Носарева Татьяна Юрьевна
A14: призер | B14: Павлов Илья Александроаич | C14: МБОУ "Коношская СШ имени Н.П. Лавёрова" | D14: 15.8 | E14: 48 | F14: Носарева Татьяна Юрьевна
A15: призер | B15: Баранова Диана Дмитриевна | C15: МБОУ "Лесозаводская СШ" | D15: 15.6 | E15: 47 | F15: Карелина Алена Валерьевна
A16: призер | B16: Долинова Ксения Максимовна | C16: МБОУ "Коношская СШ имени Н.П. Лавёрова" | D16: 15.1 | E16: 46 | F16: Носарева Татьяна Юрьевна
A17: призер | B17: Калинина Екатерина Алексеевна | C17: МБОУ "Тавреньгская СШ" | D17: 15 | E17: 45 | F17: Верещагина А. А.
A18: призер | B18: Саримсаков Мухаммад Юсуф Салимович | C18: МБОУ "Коношская СШ имени Н.П. Лавёрова" | D18: 14.8 | E18: 45 | F18: Носарева Татьяна Юрьевна
A19: призер | B19: Ершова анастасия сергеевна | C19: МБОУ "Коношская СШ имени Н.П. Лавёрова" | D19: 14.8 | E19: 45 | F19: Носарева Татьяна Юрьевна
A20: участник | B20: Смирнова Софья Андреевна | C20: МБОУ "Коношская СШ имени Н.П. Лавёрова" | D20: 14.6 | E20: 44 | F20: Носарева Татьяна Юрьевна
A21: участник | B21: Корнейчук Ульяна Михайловна | C21: МБОУ "Коношская СШ имени Н.П. Лавёрова" | D21: 14.4 | E21: 44 | F21: Носарева Татьяна Юрьевна
A22: участник | B22: Данилова Дарья Анатольевна | C22: МБОУ "Лесозаводская СШ" | D22: 14 | E22: 42 | F22: Карелина Алена Валерьевна
A23: участник | B23: Курашова Диана Сергеевна | C23: МБОУ "Тавреньгская СШ" | D23: 13.5 | E23: 41 | F23: Верещагина А. А.
A24: участник | B24: Григорьева Ксения Евгеньевна | C24: МБОУ "Коношская СШ имени Н.П. Лавёрова" | D24: 13.4 | E24: 41 | F24: Носарева Татьяна Юрьевна
A25: участник | B25: Арабаджи Даниил Андреевич | C25: МБОУ "Лесозаводская СШ" | D25: 13.4 | E25: 41 | F25: Карелина Алена Валерьевна
A26: участник | B26: Бобров Ярослав Владимирович | C26: МБОУ "Лесозаводская СШ" | D26: 13.3 | E26: 40 | F26: Карелина Алена Валерьевна
A27: участник | B27: Анфимова Валерия Александровна | C27: МБОУ "Коношская СШ имени Н.П. Лавёрова" | D27: 12.8 | E27: 39 | F27: Носарева Татьяна Юрьевна
A28: участник | B28: Кокачев Климентий Васильевич | C28: МБОУ "Коношская СШ имени Н.П. Лавёрова" | D28: 12.8 | E28: 39 | F28: Носарева Татьяна Юрьевна
A29: участник | B29: Шаманова Маргарита Александровна | C29: МБОУ "Лесозаводская СШ" | D29: 12.5 | E29: 38 | F29: Карелина Алена Валерьевна
A30: участник | B30: Брыкалова Мария Алексеевна | C30: МБОУ "Лесозаводская СШ" | D30: 12.5 | E30: 38 | F30: Карелина Алена Валерьевна
A31: участник | B31: Ахметшин Руслан Наильевич | C31: МБОУ "Лесозаводская СШ" | D31: 12.4 | E31: 38 | F31: Карелина Алена Валерьевна
A32: участник | B32: Ивашко Павел Сергеевич | C32: МБОУ "Лесозаводская СШ" | D32: 12 | E32: 36 | F32: Карелина Алена Валерьевна
A33: участник | B33: Патракеев Александр Дмитриевич | C33: МБОУ "Лесозаводская СШ" | D33: 11.6 | E33: 35 | F33: Карелина Алена Валерьевна
A34: участник | B34: Козенкова софья сергеевна | C34: МБОУ "Коношская СШ имени Н.П. Лавёрова" | D34: 11.5 | E34: 35 | F34: Носарева Татьяна Юрьевна
A35: участник | B35: Лучкинская Елена Владимировна | C35: МБОУ "Коношская СШ имени Н.П. Лавёрова" | D35: 11.3 | E35: 34 | F35: Носарева Татьяна Юрьевна
A36: участник | B36: Тухватчин Алексей Романович | C36: МБОУ "Подюжская СШ им. В.А. Абрамова" | D36: 11.2 | E36: 34 | F36: Трофименко Л.Б.
A37: участник | B37: Буянов Арсений Сергеевич | C37: МБОУ "Подюжская СШ им. В.А. Абрамова" | D37: 11.2 | E37: 34 | F37: Трофименко Л.Б.
A38: участник | B38: Буторина Софья Александровна | C38: МБОУ "Коношская СШ имени Н.П. Лавёрова" | D38: 11 | E38: 33 | F38: Носарева Татьяна Юрьевна
A39: участник | B39: Молева Ульяна Андреевна | C39: МБОУ "Коношская СШ имени Н.П. Лавёрова" | D39: 11 | E39: 33 | F39: Носарева Татьяна Юрьевна
A40: участник | B40: Шушерин Никита Михайлович | C40: МБОУ "Коношская СШ имени Н.П. Лавёрова" | D40: 10.8 | E40: 33 | F40: Носарева Татьяна Юрьевна
A41: участник | B41: Оборин Даниил Андреевич | C41: МБОУ "Лесозаводская СШ" | D41: 10.5 | E41: 32 | F41: Карелина Алена Валерьевна
A42: участник | B42: Лобанова Полина Андреевна | C42: МБОУ "Климовская СШ" | D42: 10.3 | E42: 31 | F42: Котова Н.С.
A43: участник | B43: Анфимова Елизавета Александровна | C43: МБОУ "Коношская СШ имени Н.П. Лавёрова" | D43: 9.5 | E43: 29 | F43: Носарева Татьяна Юрьевна
A44: участник | B44: Куликова Милана Алексеевна | C44: МБОУ "Лесозаводская СШ" | D44: 9.3 | E44: 28 | F44: Карелина Алена Валерьевна
A45: участник | B45: Ожигин Максим Владимирович | C45: МБОУ "Коношеозерская СШ им. В.А.Корытова" | D45: 8.9 | E45: 27 | F45: Марчук Л.В.
A46: участник | B46: Николайчик Тимофей Тимурович | C46: МБОУ "Коношская СШ имени Н.П. Лавёрова" | D46: 8.1 | E46: 25 | F46: Носарева Татьяна Юрьевна
A47: участник | B47: Шевлякова Варвара Николаевна | C47: МБОУ "Лесозаводская СШ" | D47: 7.7 | E47: 23 | F47: Карелина Алена Валерьевна
A48: участник | B48: Миронова Полина Николаевна | C48: МБОУ "Лесозаводская СШ" | D48: 7.3 | E48: 22 | F48: Карелина Алена Валерьевна
A49: участник | B49: Винцевич Даша Александровна | C49: МБОУ "Коношская СШ имени Н.П. Лавёрова" | D49: 6.9 | E49: 21 | F49: Носарева Татьяна Юрьевна
A50: участник | B50: Тарбаев Никита Сергеевич | C50: МБОУ "Подюжская СШ им. В.А. Абрамова" | D50: 6.9 | E50: 21 | F50: Трофименко Л.Б.
A51: участник | B51: Камададзе Майя Мамуковна | C51: МБОУ "Лесозаводская СШ" | D51: 6.5 | E51: 20 | F51: Карелина Алена Валерьевна
A52: участник | B52: Михеева Влада Васильевна | C52: МБОУ "Климовская СШ" | D52: 5.9 | E52: 18 | F52: Котова Н.С.
B53: Матюнин Роман Владимирович | C53: МБОУ "Вохтомская ОШ" СП "Волошская ОШ" | D53: 14.5 | E53: 44 | F53: Ильина Г.А.

Sheet 9 класс
B1: 9 класс биология (школьный этап)
B2: Фамилия Имя и Отчество участника | C2: школа | D2: баллы | E2: % | F2: ФИО учителя | G2: макс кол-во баллов | H2: 56
A3: победитель | B3: Ветошкина Эвелина Андреевна | C3: МБОУ "Коношская СШ имени Н.П. Лавёрова" | D3: 41.6 | E3: =D3*100/56 -> 74 | F3: Носарева Татьяна Юрьевна
A4: призер | B4: Шалагина Наталья Андреевна | C4: МБОУ "Коношская СШ имени Н.П. Лавёрова" | D4: 41.6 | E4: =D4*100/56 -> 74 | F4: Носарева Татьяна Юрьевна
A5: призер | B5: Грязнухин Илья Алексеевич | C5: МБОУ "Коношеозерская СШ им. В.А.Корытова" | D5: 40 | E5: 71 | F5: Марчук Л.В.
A6: призер | B6: Смирнова Милана Сергеевна | C6: МБОУ "Лесозаводская СШ" | D6: 33.3 | E6: 59 | F6: Карелина Алена Валерьевна
A7: призер | B7: Дьячкова Алина Андреевна | C7: МБОУ "Коношская СШ имени Н.П. Лавёрова" | D7: 29.6 | E7: 53 | F7: Носарева Татьяна Юрьевна
A8: призер | B8: Козенкова Надежда Сергеевна | C8: МБОУ "Коношская СШ имени Н.П. Лавёрова" | D8: 29.6 | E8: 53 | F8: Носарева Татьяна Юрьевна
A9: призер | B9: Страшненкова София Александровна | C9: МБОУ "Подюжская СШ им. В.А. Абрамова" | D9: 29 | E9: 52 | F9: Трофименко Л.Б.
A10: призер | B10: Вокуева Елизавета Дмитриевна | C10: МБОУ "Коношская СШ имени Н.П. Лавёрова" | D10: 27.3 | E10: 49 | F10: Носарева Татьяна Юрьевна
A11: призер | B11: Анисимова Валерия Артуровна | C11: МБОУ "Лесозаводская СШ" | D11: 26.9 | E11: 48 | F11: Карелина Алена Валерьевна
A12: участник | B12: Верещагина Юлия Сергеевна | C12: МБОУ "Лесозаводская СШ" | D12: 23.6 | E12: 42 | F12: Карелина Алена Валерьевна
A13: участник | B13: Мальцева Ольга Евгеньевна | C13: МБОУ "Лесозаводская СШ" | D13: 23.3 | E13: 42 | F13: Карелина Алена Валерьевна
A14: участник | B14: Прибытков Николай Александрович | C14: МБОУ "Коношская ОШ" | D14: 21.8 | E14: 39 | F14: Варксина Ю.А.
A15: участник | B15: Витков Максим Сергеевич | C15: МБОУ "Лесозаводская СШ" | D15: 21.7 | E15: 39 | F15: Карелина Алена Валерьевна
A16: участник | B16: Шабунина Владислава Сергеевна | C16: МБОУ "Коношская СШ имени Н.П. Лавёрова" | D16: 20.3 | E16: 36 | F16: Носарева Татьяна Юрьевна
A17: участник | B17: Короткевич Елена Витальевна | C17: МБОУ "Коношская ОШ" | D17: 19.9 | E17: 36 | F17: Варксина Ю.А.
A18: участник | B18: Клименко Юлия Павловна | C18: МБОУ "Коношская СШ имени Н.П. Лавёрова" | D18: 19.3 | E18: 34 | F18: Шубина Елена Борисовна
A19: участник | B19: Козорезова Анна Алексеевна | C19: МБОУ "Лесозаводская СШ" | D19: 18.6 | E19: 33 | F19: Карелина Алена Валерьевна
A20: участник | B20: Аллахвердиева Диана Рафиковна | C20: МБОУ "Коношеозерская СШ им. В.А.Корытова" | D20: 17.1 | E20: 31 | F20: Марчук Л.В.
A21: участник | B21: Александрова Ярослава Артуровна | C21: МБОУ "Лесозаводская СШ" | D21: 16.7 | E21: 30 | F21: Карелина Алена Валерьевна
A22: участник | B22: Колбина Валерия Владимировна | C22: МБОУ "Лесозаводская СШ" | D22: 15.6 | E22: 28 | F22: Карелина Алена Валерьевна
A23: участник | B23: Абакумов Богдан Викторович | C23: МБОУ "Коношеозерская СШ им. В.А.Корытова" | D23: 15.5 | E23: 28 | F23: Марчук Л.В.
A24: участник | B24: Бобарыкин Даниил Юрьевич | C24: МБОУ "Коношская СШ имени Н.П. Лавёрова" | D24: 15.1 | E24: 27 | F24: Шубина Елена Борисовна
A25: участник | B25: Алифханова Ольга Айдемировна | C25: МБОУ "Коношская СШ имени Н.П. Лавёрова" | D25: 15 | E25: 27 | F25: Шубина Елена Борисовна
A26: участник | B26: Ракитина Дарья Владимировна | C26: МБОУ "Лесозаводская СШ" | D26: 14.9 | E26: 27 | F26: Карелина Алена Валерьевна
A27: участник | B27: Савонин Константин Денисович | C27: МБОУ "Коношеозерская СШ им. В.А.Корытова" | D27: 10.5 | E27: 19 | F27: Марчук Л.В. | G27: 56
A28: участник | B28: Мачула Анна Руслановна | C28: МБОУ "Коношеозерская СШ им. В.А.Корытова" | D28: 9 | E28: 16 | F28: Марчук Л.В. | G28: 56

Sheet 10 класс
B1: 10 класс биология (школьный этап)
B2: Фамилия Имя и Отчество участника | C2: школа | D2: баллы | E2: % | F2: ФИО учителя | G2: макс кол-во баллов | H2: 63
A3: победитель | B3: Баруткина Анастасия Николаевна | C3: МБОУ "Коношская СШ имени Н.П. Лавёрова" | D3: 55.2 | E3: =D3*100/63 -> 88 | F3: Шубина Елена Борисовна
A4: победите | B4: Кусочкина Ксения Сергеевна | C4: МБОУ "Коношская СШ имени Н.П. Лавёрова" | D4: 55.2 | E4: 88 | F4: Шубина Елена Борисовна
A5: призер | B5: Шумихина Варвара Сергеевна | C5: МБОУ "Коношская СШ имени Н.П. Лавёрова" | D5: 53.5 | E5: 85 | F5: Шубина Елена Борисовна
A6: призер | B6: Лукаш Анастасия Павловна | C6: МБОУ "Коношская СШ имени Н.П. Лавёрова" | D6: 51.2 | E6: 81 | F6: Шубина Елена Борисовна
A7: призер | B7: Вохтомина Анастасия Николаевна | C7: МБОУ "Коношская СШ имени Н.П. Лавёрова" | D7: 49.7 | E7: 79 | F7: Шубина Елена Борисовна
A8: призер | B8: Чиханова Полина Александровна | C8: МБОУ "Коношская СШ имени Н.П. Лавёрова" | D8: 48.7 | E8: 77 | F8: Шубина Елена Борисовна
A9: призер | B9: Булдаков Вадим Николаевич | C9: МБОУ "Коношская СШ имени Н.П. Лавёрова" | D9: 47.8 | E9: 76 | F9: Шубина Елена Борисовна
A10: призер | B10: Прокушина Софья Витальевна | C10: МБОУ "Коношская СШ имени Н.П. Лавёрова" | D10: 47.7 | E10: 76 | F10: Шубина Елена Борисовна
A11: призер | B11: Мальцева Алина Викторовна | C11: МБОУ "Коношская СШ имени Н.П. Лавёрова" | D11: 45 | E11: 71 | F11: Шубина Елена Борисовна
A12: призер | B12: Саримсакова Сумайя Салимовна | C12: МБОУ "Коношская СШ имени Н.П. Лавёрова" | D12: 43.1 | E12: 68 | F12: Шубина Елена Борисовна
A13: призер | B13: Селезнев Матвей Михайлович | C13: МБОУ "Коношская СШ имени Н.П. Лавёрова" | D13: 40.5 | E13: 64 | F13: Шубина Елена Борисовна
A14: призер | B14: Решетникова Елизавета Владимировна | C14: МБОУ "Коношская СШ имени Н.П. Лавёрова" | D14: 37.3 | E14: 59 | F14: Шубина Елена Борисовна
A15: призер | B15: Горчакова Алёна Александровна | C15: МБОУ "Лесозаводская СШ" | D15: 32.3 | E15: =D15/50*100 -> 65 | F15: Голубева Марина Владимировна
A16: призер | B16: Семихин Матвей Евгеньевич | C16: МБОУ "Коношская СШ имени Н.П. Лавёрова" | D16: 31.3 | E16: =D16*100/63 -> 50 | F16: Шубина Елена Борисовна
A17: призер | B17: Тухватчина Евгения Романовна | C17: МБОУ "Подюжская СШ им. В.А. Абрамова" | D17: 29.5 | E17: =D17*100/63 -> 47 | F17: Трофименко Л.Б.
A18: призер | B18: Земцовский Владислав Максимович | C18: МБОУ "Коношская СШ имени Н.П. Лавёрова" | D18: 28.6 | E18: =D18*100/63 -> 45 | F18: Шубина Елена Борисовна
A19: участник | B19: Романцев Егор Николаевич | C19: МБОУ "Тавреньгская СШ" | D19: 25 | E19: =D19*100/63 -> 40 | F19: Верещагина А. А.
A20: участник | B20: Вяткин Матвей Дмитриевич | C20: МБОУ "Подюжская СШ им. В.А. Абрамова" | D20: 23.6 | E20: =D20*100/63 -> 37 | F20: Трофименко Л.Б.
A21: участник | B21: Бурлака Алиса Алексеевна | C21: МБОУ "Лесозаводская СШ" | D21: 22.8 | E21: =D21/63*100 -> 36 | F21: Голубева Марина Владимировна
A22: участник | B22: Терёхина Карина Евгеньевна | C22: МБОУ "Коношеозерская СШ им. В.А.Корытова" | D22: 20.8 | E22: =D22*100/63 -> 33 | F22: Марчук Л.В.
A23: участник | B23: Вершинин Никита Михайлович | C23: МБОУ "Коношеозерская СШ им. В.А.Корытова" | D23: 19.6 | E23: =D23*100/63 -> 31 | F23: Марчук Л.В.
A24: участник | B24: Игнатова Марина Валентиновна | C24: МБОУ "Тавреньгская СШ" | D24: 19.6 | E24: =D24*100/63 -> 31 | F24: Верещагина А. А.
A25: участник | B25: Юрина Виктория Алексеевна | C25: МБОУ "Коношская СШ имени Н.П. Лавёрова" | D25: 17.1 | E25: =D25*100/63 -> 27 | F25: Шубина Елена Борисовна
A26: участник | B26: Колесникович Карина Александровна | C26: МБОУ "Коношеозерская СШ им. В.А.Корытова" | D26: 16.1 | E26: =D26*100/63 -> 26 | F26: Марчук Л.В.
A27: участник | B27: Шахов Никита Алексеевич | C27: МБОУ "Климовская СШ" | D27: 15.6 | E27: 25 | F27: Котова Н.С.
A28: участник | B28: Юрьева Ксения Васильевна | C28: МБОУ "Коношская СШ имени Н.П. Лавёрова" | D28: 12.5 | E28: =D28*100/63 -> 20 | F28: Шубина Елена Борисовна
A29: участник | B29: Журавлев Юрий Олегович | C29: МБОУ "Коношеозерская СШ им. В.А.Корытова" | D29: 5.5 | E29: =D29*100/63 -> 9 | F29: Марчук Л.В.

Sheet 11 класс
B1: 11 класс биология (школьный этап)
B2: Фамилия Имя и Отчество участника | C2: школа | D2: баллы | E2: % | F2: ФИО учителя | G2: макс кол-во баллов | H2: 70
A3: победитель | B3: Долгоносова Татьяна Сергеевна | C3: МБОУ "Коношская СШ имени Н.П. Лавёрова" | D3: 53.7 | E3: =D3*100/70 -> 77 | F3: Носарева Татьяна Юрьевна
A4: призер | B4: Тюкачев Артем Александрович | C4: МБОУ "Лесозаводская СШ" | D4: 35.3 | E4: 50 | F4: Голубева Марина Владимировна
A5: призер | B5: Ручьева Елена Витальевна | C5: МБОУ "Коношская СШ имени Н.П. Лавёрова" | D5: 31.8 | E5: 45 | F5: Носарева Татьяна Юрьевна
A6: участник | B6: Васильева Алёна Алексеевна | C6: МБОУ "Коношская СШ имени Н.П. Лавёрова" | D6: 29 | E6: 41 | F6: Носарева Татьяна Юрьевна
A7: участник | B7: Бескровная Полина Сергеевна | C7: МБОУ "Ерцевская СШ им. С.И. Бочарова" | D7: 22 | E7: 31 | F7: Рубайло О.А.
A8: участник | B8: Старцева Екатерина Вячеславовна | C8: МБОУ "Коношеозерская СШ им. В.А.Корытова" | D8: 14 | E8: 20 | F8: Марчук Л.В.
A9: участник | B9: Валуевич Арина Алексеевна | C9: МБОУ "Ерцевская СШ им. С.И. Бочарова" | D9: 10 | E9: 14 | F9: Рубайло О.А.
